fUST/lending_fUST_20250212
["ID","MTS","AMOUNT","RATE_DAILY","PERIOD"]
[352804212,1739331041796,-503.42977604,0.00013666,2]
[352804213,1739331041805,-500.0,0.00013666,2]
[352804214,1739331041815,-517.97320949,0.00013666,2]
[352804215,1739331041824,-500.26325349,0.00013666,2]
[352804216,1739331041834,-485.01726804,0.00013666,2]
[352804217,1739331041843,-502.54092614,0.00013666,2]
[352804218,1739331041854,-5742.12,0.00013666,2]
[352804219,1739331041864,-592.0759203,0.00013666,2]
[352804220,1739331041873,-500.0,0.00013666,2]
[352804221,1739331041883,-502.35062713,0.00013666,2]
[352804222,1739331041892,-5801.44,0.00013666,2]
[352804223,1739331041902,-500.0,0.00013666,2]
[352804224,1739331041911,-502.86180634,0.00013666,2]
[352804225,1739331041921,-500.0,0.00013666,2]
[352804226,1739331041930,-500.0,0.00013666,2]
[352804227,1739331041940,-510.06,0.00013666,2]
[352804228,1739331041950,-216.99641848,0.00013666,2]
[352804229,1739331041960,-501.23865578,0.00013666,2]
[352804230,1739331041969,-505.29955754,0.00013666,2]
[352804231,1739331041978,-167.66675015,0.00013666,2]
[352804232,1739331041987,-506.87072833,0.00013666,2]
[352804233,1739331041997,-501.82936904,0.00013666,2]
[352804234,1739331042007,-503.02349459,0.00013666,2]
[352804235,1739331042017,-508.84074488,0.00013666,2]
[352804236,1739331042026,-510.06197263,0.00013666,2]
[352804237,1739331042035,-500.0,0.00013666,2]
[352804238,1739331042044,-2192.67,0.00013666,2]
[352804239,1739331042053,-500.0,0.00013666,2]
[352804240,1739331042063,-500.0,0.00013666,2]
[352804241,1739331042072,-501.50436685,0.00013666,2]
[352804242,1739331042081,-500.0,0.00013666,2]
[352804243,1739331042091,-504.74063605,0.00013666,2]
[352804244,1739331042100,-151.0,0.00013666,2]
[352804245,1739331042110,-500.0,0.00013666,2]
[352804246,1739331042120,-503.08832107,0.00013666,2]
[352804247,1739331042129,-500.0,0.00013666,2]
[352804248,1739331042139,-500.0,0.00013666,2]
[352804249,1739331042148,-500.0,0.00013666,2]
[352804250,1739331042157,-500.0,0.00013666,2]
[352804251,1739331042167,-500.0,0.00013666,2]
[352804252,1739331042176,-151.0,0.00013666,2]
[352804253,1739331042185,-503.49123211,0.00013666,2]
[352804254,1739331042194,-502.90476339,0.00013666,2]
[352804255,1739331042204,-503.93185954,0.00013666,2]
[352804256,1739331042213,-600.64400475,0.00013666,2]
[352804257,1739331042222,-505.49442552,0.00013666,2]
[352804258,1739331042232,-500.0,0.00013666,2]
[352804259,1739331042241,-503.9392517,0.00013666,2]
[352804260,1739331042251,-503.34058286,0.00013666,2]
[352804261,1739331042260,-504.44310954,0.00013666,2]
[352804262,1739331042269,-500.0,0.00013666,2]
[352804263,1739331042279,-180.78450552,0.00013667,5]
[352804264,1739331042289,-505.62645514,0.00013667,2]
[352804265,1739331042298,-503.29641154,0.00013667,2]
[352804266,1739331042307,-501.17098001,0.00013667,2]
[352804267,1739331042316,-500.0,0.00013667,2]
[352804268,1739331042326,-500.0,0.00013667,2]
[352804269,1739331042335,-509.35374891,0.00013667,2]
[352804270,1739331042345,-502.66568798,0.00013667,2]
[352804271,1739331042354,-502.3731866,0.00013667,2]
[352804272,1739331042363,-501.09509047,0.00013667,2]
[352804273,1739331042373,-500.0,0.00013667,2]
[352804274,1739331042382,-500.0,0.00013667,2]
[352804275,1739331042391,-502.74899362,0.00013667,2]
[352804276,1739331042400,-500.0,0.00013667,2]
[352804277,1739331042409,-508.50828585,0.00013667,2]
[352804278,1739331042418,-510.31211764,0.00013667,2]
[352804279,1739331042428,-500.0,0.00013667,2]
[352804280,1739331042437,-633.75127506,0.00013667,2]
[352804281,1739331042449,-506.73045002,0.00013667,2]
[352804282,1739331042460,-500.0,0.00013667,2]
[352804283,1739331042470,-502.14100495,0.00013667,2]
[352804284,1739331042479,-503.3606704,0.00013667,2]
[352804285,1739331042489,-503.41905944,0.00013667,2]
[352804286,1739331042500,-502.34005055,0.00013667,2]
[352804287,1739331042509,-609.29778675,0.00013667,2]
[352804288,1739331042519,-509.15337383,0.00013667,2]
[352804289,1739331042530,-229.8494914,0.00013667,2]
[352804290,1739331042540,-505.29099796,0.00013667,2]
[352804291,1739331042550,-506.83110241,0.00013667,2]
[352804292,1739331042560,-505.54936222,0.00013667,2]
[352804293,1739331042569,-500.46080464,0.00013667,2]
[352804295,1739331042579,-502.3328953,0.00013667,2]
[352804296,1739331042588,-509.05609178,0.00013667,2]
[352804297,1739331042598,-500.0,0.00013667,2]
[352804298,1739331042607,-502.79477911,0.00013667,2]
[352804299,1739331042617,-315.47875821,0.00013667,2]
[352804300,1739331042627,-506.5,0.00013667,2]
[352804301,1739331042636,-503.882769,0.00013667,2]
[352804302,1739331042646,-506.93085562,0.00013667,2]
[352804303,1739331042655,-503.04931556,0.00013667,2]
[352804304,1739331042665,-250.85438679,0.00013667,2]
[352804306,1739331042674,-507.29767178,0.00013667,2]
[352804307,1739331042684,-500.0,0.00013667,2]
[352804308,1739331042693,-502.68761113,0.00013667,2]
[352804310,1739331042704,-501.87307698,0.00013667,2]
[352804311,1739331042713,-504.9395046,0.00013667,2]
[352804312,1739331042723,-383.40785758,0.00013667,2]
[352804313,1739331042733,-503.40472036,0.00013667,2]
[352804314,1739331042743,-503.94911937,0.00013667,2]
[352804315,1739331042756,-500.0,0.00013667,2]
[352804316,1739331042766,-507.92340326,0.00013667,2]
[352804317,1739331042776,-502.60023355,0.00013667,2]
[352804318,1739331042786,-507.46210843,0.00013667,2]
[352804319,1739331042795,-500.0,0.00013667,2]
[352804320,1739331042805,-506.23186168,0.00013667,2]
[352804321,1739331042815,-500.0,0.00013667,2]
[352804322,1739331042824,-500.0,0.00013667,2]
[352804323,1739331042834,-502.18620414,0.00013667,2]
[352804324,1739331042843,-500.0,0.00013667,2]
[352804325,1739331042853,-501.83046628,0.00013667,2]
[352804326,1739331042863,-534.52,0.00013667,2]
[352804327,1739331042873,-500.0,0.00013667,2]
[352804328,1739331042882,-500.0,0.00013667,2]
[352804329,1739331042892,-501.94370888,0.00013667,2]
[352804330,1739331042902,-500.0,0.00013667,2]
[352804331,1739331042911,-478.16417323,0.00013667,2]
[352804332,1739331042922,-503.52056844,0.00013667,2]
[352804333,1739331042932,-500.0,0.00013667,2]
[352804334,1739331042942,-500.0,0.00013667,2]
[352804335,1739331042951,-500.0,0.00013667,2]
[352804336,1739331042962,-500.0,0.00013667,2]
[352804337,1739331042971,-504.07738757,0.00013667,2]
[352804338,1739331042981,-500.0,0.00013667,2]
[352804339,1739331042990,-502.61298474,0.00013667,2]
[352804340,1739331043000,-500.0,0.00013667,2]
[352804341,1739331043010,-502.65066515,0.00013667,2]
[352804342,1739331043020,-648.7,0.00013667,2]
[352804343,1739331043030,-449.19929583,0.00013667,2]
[352804344,1739331043039,-504.64780341,0.00013667,2]
[352804345,1739331043049,-182.022783,0.00013667,2]
[352804346,1739331043058,-500.0,0.00013667,2]
[352804347,1739331043067,-501.4546822,0.00013667,2]
[352804348,1739331043076,-501.85941428,0.00013667,2]
[352804349,1739331043086,-500.0,0.00013667,2]
[352804350,1739331043095,-500.0,0.00013667,2]
[352804351,1739331043104,-505.36616235,0.00013667,2]
[352804352,1739331043114,-501.32260726,0.00013667,2]
[352804353,1739331043124,-500.0,0.00013667,2]
[352804354,1739331043134,-500.0,0.00013667,2]
[352804355,1739331043143,-500.0,0.00013667,2]
[352804356,1739331043154,-502.23806697,0.00013667,2]
[352804357,1739331043163,-512.70696757,0.00013667,2]
[352804358,1739331043172,-623.81745668,0.00013667,2]
[352804359,1739331043182,-511.7775393,0.00013667,2]
[352804360,1739331043192,-500.0,0.00013667,2]
[352804361,1739331043201,-501.1754126,0.00013667,2]
[352804362,1739331043211,-626.76,0.00013667,2]
[352804363,1739331043221,-502.71541863,0.00013667,2]
[352804364,1739331043230,-501.0974911,0.00013667,2]
[352804365,1739331043239,-501.69348863,0.00013667,2]
[352804366,1739331043250,-501.38910469,0.00013667,2]
[352804367,1739331043259,-481.0479867,0.00013667,2]
[352804368,1739331043268,-504.87695273,0.00013667,2]
[352804369,1739331043278,-500.0,0.00013667,2]
[352804372,1739331043287,-500.0,0.00013667,2]
[352804375,1739331043297,-502.77730454,0.00013667,2]
[352804377,1739331043306,-500.0,0.00013667,2]
[352804379,1739331043316,-500.0,0.00013667,2]
[352804381,1739331043325,-500.0,0.00013667,2]
[352804382,1739331043334,-502.5523824,0.00013667,2]
[352804383,1739331043344,-500.0,0.00013667,2]
[352804384,1739331043353,-500.0,0.00013667,2]
[352804385,1739331043362,-500.92457766,0.00013667,2]
[352804386,1739331043372,-500.0,0.00013667,2]
[352804387,1739331043382,-500.0,0.00013667,2]
[352804388,1739331043391,-500.0,0.00013667,2]
[352804389,1739331043401,-500.0,0.00013667,2]
[352804390,1739331043411,-504.4238061,0.00013667,2]
[352804391,1739331043421,-501.83155023,0.00013667,2]
[352804392,1739331043431,-500.0,0.00013667,2]
[352804393,1739331043440,-504.75426987,0.00013667,2]
[352804394,1739331043451,-500.0,0.00013667,2]
[352804395,1739331043462,-500.0,0.00013667,2]
[352804396,1739331043472,-500.0,0.00013667,2]
[352804397,1739331043481,-331.44418723,0.00013667,2]
[352804398,1739331043492,-502.95848377,0.00013667,2]
[352804399,1739331043504,-377.81584853,0.00013667,2]
[352804400,1739331043513,-500.0,0.00013667,2]
[352804401,1739331043523,-579.00007186,0.00013667,2]
[352804402,1739331043535,-501.42785796,0.00013667,2]
[352804403,1739331043545,-500.0,0.00013667,2]
[352804404,1739331043556,-602.19083257,0.00013667,2]
[352804405,1739331043566,-493.0,0.00013667,2]
[352804406,1739331043575,-483.38278331,0.00013667,2]
[352804407,1739331043585,-500.0,0.00013667,2]
[352804408,1739331043594,-152.86697564,0.00013667,2]
[352804409,1739331043604,-500.0,0.00013667,2]
[352804410,1739331043613,-500.0,0.00013667,2]
[352804411,1739331043623,-501.57129286,0.00013667,2]
[352804412,1739331043632,-504.54996884,0.00013667,2]
[352804413,1739331043642,-501.81168651,0.00013667,2]
[352804414,1739331043651,-501.28964134,0.00013667,2]
[352804415,1739331043661,-500.0,0.00013667,2]
[352804416,1739331043670,-502.73687705,0.00013667,2]
[352804417,1739331043680,-503.24810381,0.00013667,2]
[352804418,1739331043689,-506.3632356,0.00013667,2]
[352804419,1739331043698,-500.0,0.00013667,2]
[352804420,1739331043707,-506.77791832,0.00013667,2]
[352804421,1739331043717,-501.70495529,0.00013667,2]
[352804422,1739331043727,-501.76447258,0.00013667,2]
[352804423,1739331043738,-500.0,0.00013667,2]
[352804424,1739331043747,-504.79095763,0.00013667,2]
[352804425,1739331043758,-256.55034457,0.00013667,2]
[352804426,1739331043767,-500.0,0.00013667,2]
[352804427,1739331043777,-500.0,0.00013667,2]
[352804428,1739331043786,-500.0,0.00013667,2]
[352804429,1739331043920,-500.0,0.00013667,2]
[352804430,1739331043931,-500.0,0.00013667,2]
[352804431,1739331043940,-500.0,0.00013667,2]
[352804432,1739331043950,-502.9853041,0.00013667,2]
[352804433,1739331043960,-238.756656,0.00013667,2]
[352804434,1739331043969,-501.36467012,0.00013667,2]
[352804435,1739331043979,-500.0,0.00013667,2]
[352804436,1739331043988,-500.0,0.00013667,2]
[352804437,1739331043998,-501.60851981,0.00013667,2]
[352804438,1739331044010,-504.56143681,0.00013667,2]
[352804439,1739331044019,-500.0,0.00013667,2]
[352804440,1739331044029,-209.13995528,0.00013667,2]
[352804441,1739331044039,-500.0,0.00013667,2]
[352804442,1739331044048,-500.0,0.00013667,2]
[352804443,1739331044058,-500.0,0.00013667,2]
[352804444,1739331044068,-500.0,0.00013667,2]
[352804445,1739331044077,-502.83875369,0.00013667,2]
[352804446,1739331044087,-500.0,0.00013667,2]
[352804447,1739331044097,-500.0,0.00013667,2]
[352804448,1739331044107,-500.0,0.00013667,2]
[352804449,1739331044116,-502.26447036,0.00013667,2]
[352804450,1739331044126,-501.42016255,0.00013667,2]
[352804451,1739331044136,-500.0,0.00013668,2]
[352804452,1739331044145,-500.0,0.00013668,2]
[352804453,1739331044155,-500.0,0.00013668,2]
[352804454,1739331044164,-500.0,0.00013668,2]
[352804455,1739331044173,-500.0,0.00013668,2]
[352804456,1739331044183,-500.0,0.00013668,2]
[352804457,1739331044192,-500.0,0.00013668,2]
[352804458,1739331044201,-500.0,0.00013668,2]
[352804459,1739331044211,-500.0,0.00013668,2]
[352804460,1739331044220,-500.0,0.00013668,2]
[352804461,1739331044229,-500.0,0.00013668,2]
[352804462,1739331044239,-500.0,0.00013668,2]
[352804463,1739331044248,-500.0,0.00013668,2]
[352804464,1739331044259,-500.0,0.00013668,2]
[352804465,1739331044269,-500.0,0.00013668,2]
[352804466,1739331044278,-500.0,0.00013668,2]
[352804467,1739331044288,-501.98551851,0.00013669,2]
[352804468,1739331044298,-502.13170062,0.00013669,2]
[352804469,1739331044307,-500.0,0.00013669,2]
[352804470,1739331044316,-551.34293498,0.00013669,2]
[352804471,1739331044325,-500.0,0.00013669,2]
[352804472,1739331044335,-648.7,0.00013669,2]
[352804473,1739331044344,-626.76,0.00013669,2]
[352804474,1739331044354,-500.0,0.0001367,2]
[352804475,1739331044363,-500.0,0.00013698,2]
[352804476,1739331044372,-227.134648,0.00013699,2]
[352804477,1739331044381,-193.574798,0.00013699,2]
[352804478,1739331044391,-500.0,0.00013699,2]
[352804479,1739331044400,-403.85276142,0.00013699,2]
[352804480,1739331044410,-500.0,0.00013699,2]
[352804481,1739331044420,-500.0,0.00013699,2]
[352804482,1739331044430,-500.0,0.00013699,2]
[352804483,1739331044440,-500.0,0.00013699,2]
[352804484,1739331044451,-500.0,0.00013699,2]
[352804485,1739331044461,-499.99999999,0.00013699,2]
[352804486,1739331044471,-3101.97671424,0.00013741,2]
[352804487,1739331044480,-160.0,0.00013802,2]
[352804488,1739331044491,-1973.1,0.00013802,2]
[352804489,1739331044500,-500.0,0.00013802,2]
[352804490,1739331044510,-736.87,0.00013802,2]
[352804491,1739331044519,-500.0,0.00013802,2]
[352804492,1739331044530,-500.0,0.00013802,2]
[352804493,1739331044539,-500.0,0.00013802,2]
[352804494,1739331044548,-502.33325102,0.00013802,2]
[352804495,1739331044558,-500.0,0.00013802,2]
[352804496,1739331044567,-500.0,0.00013802,2]
[352804497,1739331044576,-500.0,0.00013802,2]
[352804498,1739331044586,-500.0,0.00013802,2]
[352804499,1739331044595,-160.0,0.00013802,2]
[352804500,1739331044605,-500.0,0.00013802,2]
[352804501,1739331044615,-500.0,0.00013802,2]
[352804502,1739331044624,-500.0,0.00013802,2]
[352804503,1739331044634,-500.0,0.00013802,2]
[352804504,1739331044643,-511.16,0.00013802,2]
[352804505,1739331044653,-642.29,0.00013802,2]
[352804506,1739331044662,-500.0,0.00013802,2]
[352804507,1739331044671,-500.0,0.00013802,2]
[352804508,1739331044680,-410.46892744,0.00013802,2]
[352804509,1739331044690,-503.74276911,0.00013802,2]
[352804510,1739331044699,-500.0,0.00013802,2]
[352804511,1739331044709,-500.0,0.00013802,2]
[352804512,1739331044718,-500.0,0.00013802,2]
[352804513,1739331044728,-500.0,0.00013802,2]
[352804514,1739331044737,-500.0,0.00013802,2]
[352804515,1739331044747,-500.0,0.00013802,2]
[352804516,1739331044757,-701.26,0.00013802,2]
[352804517,1739331044766,-746.56,0.00013802,2]
[352804518,1739331044776,-500.0,0.00013802,2]
[352804519,1739331044785,-583.38473543,0.00013803,2]
[352804520,1739331044795,-500.0,0.00013803,2]
[352804521,1739331044804,-500.0,0.00013803,2]
[352804522,1739331044814,-500.0,0.00013803,2]
[352804523,1739331044825,-500.0,0.00013803,2]
[352804524,1739331044836,-500.0,0.00013803,2]
[352804525,1739331044847,-500.0,0.00013803,2]
[352804526,1739331044857,-648.7,0.00013803,2]
[352804527,1739331044866,-590.75,0.00013803,2]
[352804528,1739331044876,-500.0,0.00013803,2]
[352804529,1739331044886,-500.0,0.00013803,2]
[352804530,1739331044895,-503.03256543,0.00013803,2]
[352804531,1739331044905,-500.0,0.00013803,2]
[352804532,1739331044914,-500.0,0.00013803,2]
[352804533,1739331044923,-500.0,0.00013803,2]
[352804534,1739331044933,-500.0,0.00013803,2]
[352804535,1739331044942,-500.0,0.00013803,2]
[352804536,1739331044952,-626.76,0.00013803,2]
[352804537,1739331044962,-500.0,0.00013803,2]
[352804538,1739331044972,-501.19309051,0.00013803,2]
[352804539,1739331044981,-500.0,0.00013803,2]
[352804540,1739331044991,-500.0,0.00013803,2]
[352804541,1739331045000,-500.0,0.00013803,2]
[352804542,1739331045010,-500.0,0.00013803,2]
[352804543,1739331045020,-500.0,0.00013803,2]
[352804544,1739331045029,-500.0,0.00013803,2]
[352804545,1739331045039,-522.1428522,0.00013803,2]
[352804546,1739331045048,-500.0,0.00013803,2]
[352804547,1739331045059,-509.4062046,0.00013803,2]
[352804548,1739331045068,-500.0,0.00013803,2]
[352804549,1739331045079,-504.54755658,0.00013803,2]
[352804550,1739331045089,-490.0,0.00013803,2]
[352804551,1739331045098,-436.921988,0.00013803,2]
[352804552,1739331045108,-5742.12,0.00013803,2]
[352804553,1739331045118,-5801.44,0.00013803,2]
[352804554,1739331045127,-500.0,0.00013803,2]
[352804555,1739331045136,-500.0,0.00013803,2]
[352804556,1739331045146,-500.0,0.00013803,2]
[352804557,1739331045156,-503.50340167,0.00013803,2]
[352804558,1739331045165,-2192.67,0.00013803,2]
[352804559,1739331045175,-504.77482639,0.00013803,2]
[352804560,1739331045184,-501.38466285,0.00013803,2]
[352804561,1739331045194,-500.0,0.00013803,2]
[352804562,1739331045205,-508.76732381,0.00013803,2]
[352804563,1739331045215,-502.24315677,0.00013803,2]
[352804564,1739331045226,-500.0,0.00013803,2]
[352804565,1739331045238,-502.12792052,0.00013803,2]
[352804566,1739331045248,-500.0,0.00013803,2]
[352804567,1739331045258,-501.65217109,0.00013803,2]
[352804568,1739331045267,-500.0,0.00013803,2]
[352804569,1739331045277,-160.0,0.00013803,2]
[352804570,1739331045286,-160.0,0.00013803,2]
[352804571,1739331045296,-500.0,0.00013804,2]
[352804572,1739331045305,-507.20029289,0.00013804,2]
[352804573,1739331045315,-503.47737774,0.00013804,2]
[352804574,1739331045324,-536.38930715,0.00013804,2]
[352804575,1739331045334,-510.36192211,0.00013804,2]
[352804576,1739331045343,-520.21459942,0.00013804,2]
[352804577,1739331045353,-500.0,0.00013804,2]
[352804578,1739331045362,-182.08696166,0.00013804,2]
[352804579,1739331045371,-500.0,0.00013804,2]
[352804580,1739331045381,-500.0,0.00013804,2]
[352804581,1739331045391,-500.0,0.00013804,2]
[352804582,1739331045400,-501.71224327,0.00013804,2]
[352804583,1739331045410,-500.0,0.00013804,2]
[352804584,1739331045419,-502.3630271,0.00013804,2]
[352804585,1739331045428,-504.43644953,0.00013804,2]
[352804586,1739331045438,-500.0,0.00013804,2]
[352804587,1739331045448,-500.0,0.00013804,2]
[352804588,1739331045461,-204.87314872,0.00013804,2]
[352804589,1739331045470,-504.08373585,0.00013804,2]
[352804590,1739331045480,-500.0,0.00013804,2]
[352804591,1739331045490,-503.21881989,0.00013804,2]
[352804592,1739331045503,-501.76200304,0.00013804,2]
[352804593,1739331045512,-502.79809466,0.00013804,2]
[352804594,1739331045521,-500.0,0.00013804,2]
[352804595,1739331045533,-500.0,0.00013804,2]
[352804596,1739331045543,-338.40715389,0.00013804,2]
[352804597,1739331045553,-502.36842424,0.00013804,2]
[352804598,1739331045563,-500.0,0.00013804,2]
[352804599,1739331045572,-500.0,0.00013804,2]
[352804600,1739331045582,-502.54309447,0.00013804,2]
[352804602,1739331045591,-500.0,0.00013804,2]
[352804603,1739331045601,-500.0,0.00013804,2]
[352804604,1739331045610,-504.1255924,0.00013804,2]
[352804605,1739331045620,-505.26388,0.00013804,2]
[352804607,1739331045630,-502.36803124,0.00013804,2]
[352804609,1739331045640,-500.0,0.00013804,2]
[352804611,1739331045649,-500.0,0.00013804,2]
[352804612,1739331045659,-500.0,0.00013804,2]
[352804613,1739331045668,-500.0,0.00013804,2]
[352804614,1739331045678,-467.98894088,0.00013804,2]
[352804615,1739331045688,-500.0,0.00013804,2]
[352804616,1739331045697,-502.57273315,0.00013804,2]
[352804617,1739331045707,-500.0,0.00013804,2]
[352804618,1739331045716,-274.33600676,0.00013804,2]
[352804619,1739331045726,-502.80877126,0.00013804,2]
[352804620,1739331045736,-500.0,0.00013804,2]
[352804621,1739331045746,-500.0,0.00013804,2]
[352804622,1739331045759,-407.96857615,0.00013804,2]
[352804623,1739331045768,-502.69379632,0.00013804,2]
[352804624,1739331045777,-167.96766142,0.00013804,2]
[352804625,1739331045787,-502.47665569,0.00013804,2]
[352804627,1739331045907,-343.16982641,0.00013804,2]
[352804628,1739331045917,-500.0,0.00013804,2]
[352804629,1739331045927,-500.0,0.00013805,2]
[352804630,1739331045937,-500.0,0.00013805,2]
[352804631,1739331045947,-500.0,0.00013805,2]
[352804632,1739331045957,-500.0,0.00013805,2]
[352804633,1739331045967,-501.9902996,0.00013805,2]
[352804634,1739331045977,-500.0,0.00013805,2]
[352804635,1739331045987,-502.5628246,0.00013805,2]
[352804636,1739331045997,-543.39,0.00013805,2]
[352804637,1739331046009,-504.23848509,0.00013805,2]
[352804638,1739331046019,-501.6998066,0.00013805,2]
[352804639,1739331046028,-500.0,0.00013805,2]
[352804640,1739331046037,-648.7,0.00013805,2]
[352804641,1739331046047,-503.40614959,0.00013805,2]
[352804642,1739331046056,-500.0,0.00013805,2]
[352804643,1739331046066,-500.0,0.00013805,2]
[352804644,1739331046076,-500.0,0.00013805,2]
[352804645,1739331046086,-626.76,0.00013805,2]
[352804646,1739331046095,-648.7,0.00013806,2]
[352804647,1739331046104,-626.76,0.00013806,2]
[352804648,1739331046114,-500.0,0.00013807,2]
[352804649,1739331046123,-500.0,0.00013849,2]
[352804650,1739331046132,-221.88385413,0.00013895,2]
[352804651,1739331046142,-209.748,0.00013896,2]
[352804652,1739331046151,-179.85695766,0.00013896,2]
[352804654,1739331046160,-1973.1,0.00013939,2]
[352804655,1739331046170,-500.0,0.00013939,2]
[352804656,1739331046179,-736.87,0.00013939,2]
[352804658,1739331046189,-500.0,0.00013939,2]
[352804659,1739331046199,-500.0,0.00013939,2]
[352804661,1739331046209,-500.0,0.00013939,2]
[352804663,1739331046219,-500.0,0.00013939,2]
[352804665,1739331046229,-500.0,0.00013939,2]
[352804667,1739331046238,-500.0,0.00013939,2]
[352804669,1739331046248,-500.0,0.00013939,2]
[352804671,1739331046260,-500.0,0.00013939,2]
[352804673,1739331046270,-500.0,0.00013939,2]
[352804675,1739331046279,-500.0,0.00013939,2]
[352804677,1739331046290,-500.0,0.00013939,2]
[352804679,1739331046299,-511.16,0.00013939,2]
[352804681,1739331046309,-500.0,0.00013939,2]
[352804683,1739331046319,-500.0,0.00013939,2]
[352804685,1739331046329,-500.0,0.00013939,2]
[352804687,1739331046340,-242.62,0.00013939,2]
[352804689,1739331046350,-500.0,0.00013939,2]
[352804691,1739331046359,-500.0,0.00013939,2]
[352804693,1739331046369,-701.26,0.00013939,2]
[352804695,1739331046379,-746.56,0.00013939,2]
[352804697,1739331046388,-500.0,0.00013939,2]
[352804699,1739331046398,-500.0,0.0001394,2]
[352804701,1739331046407,-500.0,0.0001394,2]
[352804703,1739331046417,-500.0,0.0001394,2]
[352804705,1739331046426,-500.0,0.0001394,2]
[352804707,1739331046437,-500.0,0.0001394,2]
[352804709,1739331046447,-500.0,0.0001394,2]
[352804711,1739331046460,-500.0,0.0001394,2]
[352804713,1739331046470,-500.0,0.0001394,2]
[352804715,1739331046479,-500.0,0.0001394,2]
[352804717,1739331046489,-500.0,0.0001394,2]
[352804719,1739331046499,-500.0,0.0001394,2]
[352804721,1739331046512,-160.0,0.0001394,2]
[352804723,1739331046522,-5742.12,0.0001394,2]
[352804725,1739331046534,-5801.44,0.0001394,2]
[352804727,1739331046544,-500.0,0.0001394,2]
[352804729,1739331046554,-506.12175005,0.0001394,2]
[352804731,1739331046563,-500.0,0.0001394,2]
[352804733,1739331046573,-2192.67,0.0001394,2]
[352804735,1739331046583,-500.0,0.0001394,2]
[352804737,1739331046592,-500.0,0.0001394,2]
[352804738,1739331046602,-500.0,0.0001394,2]
[352804741,1739331046612,-648.7,0.00013941,2]
[352804743,1739331046621,-567.33944001,0.00013941,2]
[352804745,1739331046631,-178.15,0.00013941,2]
[352804746,1739331046642,-500.0,0.00013941,2]
[352804748,1739331046651,-626.76,0.00013941,2]
[352804749,1739331046661,-190.34243044,0.00013941,2]
[352804750,1739331046671,-635.76698777,0.00013941,2]
[352804751,1739331046680,-528.7,0.00013941,2]
[352804752,1739331046690,-500.0,0.00013941,2]
[352804753,1739331046700,-256.02895938,0.00013941,2]
[352804754,1739331046710,-343.30446297,0.00013941,2]
[352804755,1739331046722,-500.0,0.00013941,2]
[352804756,1739331046732,-270.97710673,0.00013941,2]
[352804757,1739331047028,-500.0,0.0001353,2]
[352804758,1739331047039,-500.0,0.00013667,2]
[352804759,1739331047049,-180.78450552,0.00013669,5]
[352804760,1739331047058,-213.26041955,0.00013804,2]
[352804761,1739331047068,-229.02289327,0.00013941,2]
[352804762,1739331047079,-170.17267858,0.00013941,2]
[352804763,1739331047088,-502.13431913,0.00013941,2]
[352804764,1739331047098,-500.0,0.00013941,2]
[352804765,1739331047108,-500.0,0.00013941,2]
[352804766,1739331047117,-501.77365223,0.00013942,2]
[352804767,1739331047127,-500.0,0.00013942,2]
[352804768,1739331047137,-506.24839808,0.00013942,2]
[352804769,1739331047148,-504.60123991,0.00013942,2]
[352804770,1739331047158,-503.8400522,0.00013942,2]
[352804771,1739331047167,-500.0,0.00013942,2]
[352804772,1739331047177,-154.51873987,0.00014,2]